[Event "7th Sharjah Masters 2024"]
[Site "Sharjah"]
[Date "2024.05.22"]
[Round "9.37"]
[White "Esipenko, Andrey"]
[Black "Erdos, Viktor"]
[Result "1-0"]
[ECO "C78"]
[WhiteElo "2704"]
[BlackElo "2546"]
[Annotator "TA"]
[PlyCount "77"]
[EventDate "2024.05.13"]
[EventType "swiss"]
[EventCountry "UAE"]
[SourceTitle "playchess.com"]
[Source "ChessBase"]
[SourceQuality "1"]
[TimeControl "5400+30"]

{[%evp 15,76,43,34,42,88,90,77,45,30,52,45,24,19,0,32,0,0,0,0,0,0,0,0,0,31,33,32,30,24,29,47,19,87,106,101,107,105,113,123,52,129,121,121,121,165,100,148,151,163,154,155,160,166,145,191,138,1827,1820,29966,6490,29986,1814,29999]} 1. e4 {[%emt 0:00:04]} e5 {[%emt 0:00:37]} 2. Nf3 {[%emt 0:00:09]} Nc6 {[%emt 0:00:06]} 3. Bb5 {[%emt 0:00:13]} a6 {[%emt 0:00:07]} 4. Ba4 {[%emt 0:00:06]} Nf6 {[%emt 0:00:05]} 5. O-O {[%emt 0:00:09]} Bc5 {[%emt 0:00:29]} 6. c3 {[%emt 0:00:16]} O-O {[%emt 0:00:08]} 7. d4 {[%emt 0:03:20]} Ba7 {[%emt 0:00:09]} 8. Bg5 {[%emt 0:12:42] C78: Ruy Lopez: Archangelsk and Möller Defences.} h6 {[%emt 0:01:09]} 9. Bh4 {[%emt 0:00:22]} d6 {[%emt 0:00:42]} (9... exd4 $14 10. Qc1 (10. cxd4 b5 $14) 10... Qe8) 10. Bxc6 $1 $16 {[%emt 0:02:19]} bxc6 {[%emt 0:00:05]} 11. Re1 $5 {[%emt 0:00:22][%mdl 4] Leaves trodden paths.} g5 {[%emt 0:32:24]} 12. Bg3 {[%emt 0:09:23]} g4 {[%emt 0:03:38]} 13. Nh4 $146 {[%emt 0:19:38]} (13. dxe5 {looks sharper.} gxf3 14. exf6 Qxf6 15. e5) ({Predecessor:} 13. Bh4 gxf3 14. Qxf3 Kg7 15. Qg3+ Kh7 16. Qf3 Kg7 17. Qg3+ Kh7 18. Qf3 Kg6 19. Qg3+ {1-0 Pichot,A (2630)-Warmerdam,M (2535) Carlsen Inv Qual rapid 2021 (5)}) 13... Nh5 {[%emt 0:10:36]} 14. Na3 {[%emt 0:00:25]} Qg5 {[%emt 0:13:14]} 15. Nc2 {[%emt 0:02:45]} (15. Nc4 {with more complications.} Nxg3 16. hxg3 Qf6 17. dxe5 Bxf2+ 18. Kh2) 15... Re8 {[%emt 0:03:17]} 16. Qd3 {[%emt 0:07:50]} Bd7 {[%emt 0:14:55]} 17. Rad1 {[%emt 0:02:24]} a5 {[%emt 0:03:34]} 18. Ne3 {[%emt 0:02:09]} Nxg3 {[%emt 0:03:02]} 19. hxg3 {[%emt 0:01:22]} (19. fxg3 d5 20. exd5 cxd5 $15) 19... d5 {[%emt 0:02:48]} 20. dxe5 {[%emt 0:08:58]} Rxe5 {[%emt 0:00:55]} 21. exd5 {[%emt 0:00:16]} Rae8 {[%emt 0:00:16]} 22. dxc6 {[%emt 0:02:17]} Bxc6 {[%emt 0:00:09]} 23. Kh2 {[%emt 0:00:11]} Bxe3 {[%emt 0:08:15]} (23... h5 $11 {remains equal.}) 24. Rxe3 $16 {[%emt 0:00:40]} Rxe3 {[%emt 0:00:04]} 25. fxe3 {[%emt 0:00:09]} Rxe3 {[%emt 0:00:09]} 26. Qc4 $1 {[%emt 0:01:25]} Re6 {[%emt 0:00:46]} 27. b4 {[%emt 0:10:43]} (27. b3 $16) 27... axb4 {[%emt 0:00:43]} (27... a4 $14) 28. cxb4 $16 {[%emt 0:01:09]} h5 {[%emt 0:00:04]} 29. Qc2 {[%emt 0:01:28]} Qe5 {[%emt 0:01:30]} 30. Rd8+ {[%emt 0:00:52]} (30. a4 $1 $18) 30... Kg7 {[%emt 0:00:38]} ({Black should play} 30... Re8 31. Rxe8+ Bxe8) 31. a4 $1 $16 {[%emt 0:02:14]} ({Much worse is} 31. Nf5+ $6 Kh7 32. Nh4+ Kg7 $11) 31... Be4 {[%emt 0:00:14]} 32. Qc1 $1 {[%emt 0:00:38]} Rc6 {[%emt 0:00:56] [#]} 33. Qe1 $1 {[%emt 0:00:32]} Rc2 {[%emt 0:00:37] [#]} 34. a5 $1 {[%emt 0:00:59]} Ra2 {[%emt 0:00:37]} (34... f5 $16) 35. Qe3 {[%emt 0:01:16]} (35. Rd7 $18) 35... Qe6 $2 {[%emt 0:00:31][%mdl 8192]} (35... Qf6 $16) 36. Qc3+ $18 {[%emt 0:01:14]} Kh6 {[%emt 0:00:27]} 37. Rh8+ {[%emt 0:00:36]} (37. Qh8+ $142 Kg5 38. Re8 Qxe8 39. Qxe8 Re2 40. Qb5+ (40. Qxf7 Kh6 $18) 40... f5 41. Qxe2 Kf6 42. a6) 37... Kg5 {[%emt 0:00:24]} 38. Qxc7 {[%emt 0:02:00]} (38. Qd4 $142 Rxg2+ 39. Nxg2 Qf6 40. Rxh5+ (40. Qxe4 Qxh8 41. a6 Qa1 $18) (40. Qe3+ Kf5 41. Qf4+ Ke6 42. Re8+ Kd7 43. Qxf6 Kxe8 44. Qe5+ Kd7 45. Qxe4 Kd6) 40... Kg6 41. Rh6+ (41. Qxe4+ Kxh5 42. Qh7+ Kg5 43. Qh4+ Kg6 44. Qxf6+ Kxf6 45. a6 Kf5) (41. Nf4+ Qxf4 42. gxf4 g3+ 43. Kxg3 f6 44. Qxe4+ Kf7 45. Rh7+ Kg8 46. Qg6+ Kf8 47. Qf7#) 41... Kxh6 42. Qxf6+ Bg6 43. a6) 38... Bxg2 {[%emt 0:00:36]} 39. Qf4# {[%emt 0:00:12]} 1-0

[Event "7th Sharjah Masters 2024"]
[Site "Sharjah"]
[Date "2024.05.22"]
[Round "9.38"]
[White "Samant Aditya S"]
[Black "Moroni, Luca Jr"]
[Result "1-0"]
[ECO "B12"]
[WhiteElo "2501"]
[BlackElo "2581"]
[Annotator "TA"]
[PlyCount "75"]
[EventDate "2024.05.13"]
[EventType "swiss"]
[EventCountry "UAE"]
[SourceTitle "playchess.com"]
[Source "ChessBase"]
[SourceQuality "1"]
[TimeControl "5400+30"]

{[%evp 26,75,29,-53,-64,-35,-39,-44,-49,-56,-44,-81,-78,-80,-86,-106,-18,-21,-19,-23,0,0,26,0,50,56,45,45,20,22,133,140,350,299,304,340,360,366,333,341,349,364,401,400,425,380,5550,5122,29985,29986,29986,29987]} 1. e4 {[%emt 0:00:03]} c6 {[%emt 0:00:03]} 2. d4 {[%emt 0:01:00]} d5 {[%emt 0:00:05]} 3. e5 {[%emt 0:00:03]} Bf5 {[%emt 0:00:04]} 4. Nf3 {[%emt 0:00:04]} e6 {[%emt 0:00:10]} 5. Be2 {[%emt 0:00:06]} Nd7 {[%emt 0:00:04]} 6. O-O {[%emt 0:00:07]} a5 {[%emt 0:00:04] is currently scoring better than 6...Ne7. B12: Caro-Kann: Advance Variation.} 7. a4 {[%emt 0:02:08]} f6 {[%emt 0:00:07]} 8. Nbd2 {[%emt 0:00:04]} Nh6 {[%emt 0:00:40]} 9. Nb3 {[%emt 0:00:25]} Nf7 {[%emt 0:07:11]} 10. Re1 {[%emt 0:00:25]} g5 {[%emt 0:00:43]} 11. h3 $146 {[%emt 0:03:27]} ({Predecessor:} 11. exf6 Qxf6 12. Bd3 Bxd3 13. Qxd3 g4 14. Nfd2 h5 15. Qe2 Nd8 16. Nf1 Bd6 17. Bd2 {0-1 Liang,J (2474)-Ghasi,A (2506) Casablanca Mohammed op 4th 2023 (5)}) 11... Bg7 {[%emt 0:05:56]} 12. exf6 {[%emt 0:08:19]} Qxf6 {[%emt 0:05:18]} 13. Bd2 {[%emt 0:00:40]} h5 {[%emt 0:02:14]} 14. Ne5 {[%emt 0:16:24]} (14. Bxa5 g4 15. Nh2 gxh3 $17) (14. c4 $1 $11) 14... Nfxe5 $15 {[%emt 0:10:08]} (14... g4 {looks sharper.} 15. Nxf7 Kxf7 16. Bd3 b6) 15. dxe5 {[%emt 0:00:07]} Qg6 $1 {[%emt 0:00:21]} 16. Nd4 $1 {[%emt 0:00:37]} (16. Bxa5 $2 Bxc2 (16... Bxe5 17. Bd3 $17) 17. Qd2 Bxb3 $19) (16. Nxa5 g4 17. Nxb7 Bxc2 $17) 16... Be4 {[%emt 0:02:20]} 17. f3 {[%emt 0:14:56]} Bxe5 {[%emt 0:15:48]} 18. Nxc6 {[%emt 0:05:02]} bxc6 {[%emt 0:04:13]} (18... Bxc2 19. Nxe5 Nxe5 20. Bb5+ Nc6 21. Qe2 $16) 19. fxe4 {[%emt 0:00:05]} g4 {[%emt 0:05:44]} 20. h4 {[%emt 0:03:45]} Nf6 {[%emt 0:14:07]} (20... Bxb2 $6 21. exd5 Qf6 22. Be3 $11) (20... dxe4 21. Bc4 $11) (20... Qxe4 21. Bd3 Qd4+ 22. Be3 $15) (20... O-O $17 {...Qf6 is the strong threat.} 21. exd5 exd5 (21... Bxb2 22. dxc6 Bd4+ 23. Kh1 $15) (21... cxd5 22. Bg5 $17)) 21. Bc3 {[%emt 0:22:44]} (21. exd5 Bd4+ 22. Kh2 Ne4 $17) 21... Bxc3 {[%emt 0:05:42]} (21... Qxe4 $2 22. Bb5 $18) 22. bxc3 {[%emt 0:00:02]} O-O {[%emt 0:01:03]} (22... dxe4 23. Qd6 Kf7 24. Red1 $11 (24. Qxc6 Rhc8 $14)) (22... Qxe4 $2 {too greedy.} 23. Bb5 Qf4 24. Bxc6+ Ke7 25. Bxa8 (25. Bxd5 Ra6 $18) 25... Rxa8 26. Qe2 $18) (22... Nxe4 $142 23. Bd3 O-O 24. Bxe4 dxe4) 23. exd5 $11 {[%emt 0:00:44]} Nxd5 {[%emt 0:02:26]} 24. Qd4 {[%emt 0:03:05]} Nf4 {[%emt 0:08:37]} (24... Qxc2 $11 25. Rac1 Qh7) 25. Bd3 $14 {[%emt 0:01:21]} Nxd3 {[%emt 0:00:31]} 26. cxd3 {[%emt 0:01:01]} Rad8 {[%emt 0:02:17]} 27. Qc4 {[%emt 0:03:59]} Rf6 {[%emt 0:01:28]} (27... Rd5 $11 {keeps the balance.}) 28. Qxc6 $16 {[%emt 0:03:58]} Rxd3 $2 {[%emt 0:02:13] [#]} (28... Qxd3 $16 29. Rxe6 Qe3+ 30. Rxe3 Rxc6) 29. Re5 $1 $18 {[%emt 0:01:02]} Rd5 {[%emt 0:01:33]} 30. Rxd5 {[%emt 0:00:24]} exd5 {[%emt 0:00:01]} 31. Qxd5+ {[%emt 0:00:07]} Kh7 {[%emt 0:00:03]} 32. Qxa5 {[%emt 0:00:33]} g3 {[%emt 0:00:38]} 33. Qe5 {[%emt 0:07:05]} Rf5 {[%emt 0:01:45]} 34. Qd4 {[%emt 0:01:26]} Rf7 {[%emt 0:00:54]} 35. a5 {[%emt 0:01:49]} Qf5 $2 {[%emt 0:00:01]} (35... Rb7 36. Qd1 Re7) 36. a6 $18 {[%emt 0:00:28]} Rd7 {[%emt 0:00:01]} 37. Qxd7+ {[%emt 0:00:43]} Qxd7 {[%emt 0:00:01]} 38. a7 {[%emt 0:00:01]} 1-0

[Event "7th Sharjah Masters 2024"]
[Site "Sharjah"]
[Date "2024.05.22"]
[Round "9.39"]
[White "Aditya Mittal"]
[Black "Klimkowski, Jan"]
[Result "1/2-1/2"]
[ECO "C50"]
[WhiteElo "2608"]
[BlackElo "2518"]
[Annotator "RC"]
[PlyCount "143"]
[EventDate "2024.05.13"]
[EventType "swiss"]
[EventCountry "UAE"]
[SourceTitle "playchess.com"]
[Source "ChessBase"]
[SourceQuality "1"]
[TimeControl "5400+30"]

1. e4 {[%emt 0:00:02]} e5 {[%emt 0:00:06]} 2. Nf3 {[%emt 0:00:01]} Nc6 {[%emt 0:00:07]} 3. Bc4 {[%emt 0:00:01]} Nf6 {[%emt 0:00:07]} 4. d3 {[%emt 0:00:02]} Bc5 {[%emt 0:00:06]} 5. O-O {[%emt 0:00:02]} O-O {[%emt 0:00:19]} 6. Bg5 {[%emt 0:00:02]} h6 {[%emt 0:00:57]} 7. Bh4 {[%emt 0:00:01]} Be7 {[%emt 0:00:17]} 8. Bg3 {[%emt 0:00:17]} d6 {[%emt 0:00:32]} 9. a4 {[%emt 0:00:01]} Nh7 {[%emt 0:02:04]} 10. c3 {[%emt 0:09:03]} Kh8 {[%emt 0:00:13]} 11. a5 {[%emt 0:15:21]} a6 {[%emt 0:08:05]} 12. Qb3 {[%emt 0:02:24]} Qe8 {[%emt 0:04:23]} 13. Re1 {[%emt 0:06:30]} Bf6 {[%emt 0:10:38]} 14. Nbd2 {[%emt 0:01:27]} g5 {[%emt 0:02:14]} 15. h3 {[%emt 0:08:06]} h5 {[%emt 0:01:51]} 16. Nf1 {[%emt 0:01:47]} h4 {[%emt 0:06:42]} 17. Bh2 {[%emt 0:00:03]} g4 {[%emt 0:00:02]} 18. hxg4 {[%emt 0:00:16]} Bxg4 {[%emt 0:00:09]} 19. Ne3 {[%emt 0:11:15]} Bxf3 {[%emt 0:13:09]} 20. gxf3 {[%emt 0:00:02]} Qd7 {[%emt 0:00:13]} 21. Ng4 {[%emt 0:10:12]} Ng5 {[%emt 0:07:49]} 22. Qd1 {[%emt 0:02:49]} Bg7 {[%emt 0:01:21]} 23. Kh1 {[%emt 0:12:32]} f5 {[%emt 0:04:36]} 24. Ne3 {[%emt 0:00:04]} fxe4 {[%emt 0:11:05]} 25. fxe4 {[%emt 0:00:05]} Nf3 {[%emt 0:00:04]} 26. Nf5 {[%emt 0:08:35]} Rxf5 {[%emt 0:00:02]} 27. exf5 {[%emt 0:00:04]} Qxf5 {[%emt 0:00:07]} 28. Be6 {[%emt 0:00:35]} Qf6 {[%emt 0:00:49]} 29. Re4 {[%emt 0:02:24]} Rf8 {[%emt 0:04:15]} 30. Bh3 {[%emt 0:00:53]} d5 {[%emt 0:05:24]} 31. Rg4 {[%emt 0:02:40]} Bh6 {[%emt 0:03:17]} 32. Bg2 {[%emt 0:02:02]} Nxh2 {[%emt 0:01:05]} 33. Kxh2 {[%emt 0:00:01]} e4 {[%emt 0:01:21]} 34. dxe4 {[%emt 0:03:34]} Ne5 {[%emt 0:00:01]} 35. exd5 {[%emt 0:00:08]} h3 {[%emt 0:02:11]} 36. Kxh3 {[%emt 0:02:21]} Nxg4 {[%emt 0:06:41]} 37. Qxg4 {[%emt 0:00:02]} Qxf2 {[%emt 0:00:05]} 38. Rf1 {[%emt 0:01:42]} Qe3+ {[%emt 0:00:01]} 39. Rf3 {[%emt 0:00:06]} Rxf3+ {[%emt 0:00:17]} 40. Bxf3 {[%emt 0:00:05]} Bf4 {[%emt 0:00:34]} 41. Qh5+ {[%emt 0:01:27]} Kg7 {[%emt 0:00:16]} 42. Kg4 {[%emt 0:00:07]} Bh6 {[%emt 0:03:07]} 43. Qh2 {[%emt 0:00:28]} Qg5+ {[%emt 0:00:11]} 44. Kh3 {[%emt 0:00:00]} Qf5+ {[%emt 0:00:59]} 45. Bg4 {[%emt 0:00:29]} Qd3+ {[%emt 0:00:51]} 46. Kh4 {[%emt 0:01:26]} Kg6 {[%emt 0:00:50]} 47. Qe5 {[%emt 0:00:29]} Be3 {[%emt 0:03:56]} 48. Qe6+ {[%emt 0:00:52]} Kg7 {[%emt 0:00:09]} 49. Qe7+ {[%emt 0:00:06]} Kh6 {[%emt 0:00:46]} 50. Qf6+ {[%emt 0:00:04]} Qg6 {[%emt 0:00:06]} 51. Qf8+ {[%emt 0:01:51]} Qg7 {[%emt 0:00:07]} 52. Qf3 {[%emt 0:00:34]} Qg5+ {[%emt 0:00:15]} 53. Kg3 {[%emt 0:00:31]} Qe5+ {[%emt 0:00:03]} 54. Kg2 {[%emt 0:00:05]} Qg5 {[%emt 0:01:53]} 55. Qf8+ {[%emt 0:00:40]} Qg7 {[%emt 0:00:21]} 56. Qf5 {[%emt 0:00:03]} Qg6 {[%emt 0:00:44]} 57. Qf8+ {[%emt 0:01:25]} Qg7 {[%emt 0:00:02]} 58. Qc8 {[%emt 0:00:18]} Bc1 {[%emt 0:00:57]} 59. Qe6+ {[%emt 0:00:39]} Qg6 {[%emt 0:00:04]} 60. b4 {[%emt 0:00:35]} Bd2 {[%emt 0:00:34]} 61. Kf3 {[%emt 0:00:32]} Qxe6 {[%emt 0:00:10]} 62. dxe6 {[%emt 0:00:35]} Kg7 {[%emt 0:00:10]} 63. e7 {[%emt 0:00:23]} Kf7 {[%emt 0:00:02]} 64. Bc8 {[%emt 0:00:04]} Bxc3 {[%emt 0:00:11]} 65. Bxb7 {[%emt 0:00:06]} Bxb4 {[%emt 0:00:05]} 66. Bxa6 {[%emt 0:00:05]} Bxa5 {[%emt 0:00:03]} 67. Ke4 {[%emt 0:00:04]} Kxe7 {[%emt 0:00:03]} 68. Bb5 {[%emt 0:00:03]} Bc3 {[%emt 0:00:06]} 69. Kd5 {[%emt 0:00:03]} Bd4 {[%emt 0:00:03]} 70. Kxd4 {[%emt 0:00:04]} c6 {[%emt 0:00:05]} 71. Kc5 {[%emt 0:00:04]} cxb5 {[%emt 0:00:03]} 72. Kxb5 {[%emt 0:00:03]} 1/2-1/2

[Event "7th Sharjah Masters 2024"]
[Site "Sharjah"]
[Date "2024.05.22"]
[Round "9.40"]
[White "Vakhidov, Jakhongir"]
[Black "Seemann, Jakub"]
[Result "1-0"]
[ECO "E46"]
[WhiteElo "2599"]
[BlackElo "2475"]
[Annotator "TA"]
[PlyCount "99"]
[EventDate "2024.05.13"]
[EventType "swiss"]
[EventCountry "UAE"]
[SourceTitle "playchess.com"]
[Source "ChessBase"]
[SourceQuality "1"]
[TimeControl "5400+30"]

{[%evp 11,99,-5,0,-4,0,-14,10,-6,0,-8,0,0,46,52,93,81,85,88,89,84,87,91,112,82,86,77,169,166,169,163,231,223,258,239,256,264,255,256,319,313,314,311,314,295,325,314,321,327,313,313,386,385,393,391,406,400,461,464,458,455,461,454,506,499,485,477,508,504,501,498,472,474,497,502,720,720,754,726,689,603,612,412,658,664,645,656,927,946,867,806]} 1. d4 {[%emt 0:10:38]} Nf6 {[%emt 0:00:08]} 2. c4 {[%emt 0:00:05]} e6 {[%emt 0:00:08]} 3. Nc3 {[%emt 0:00:05]} Bb4 {[%emt 0:00:09]} 4. e3 {[%emt 0:00:05]} O-O {[%emt 0:00:09]} 5. Bd2 {[%emt 0:00:04]} d5 {[%emt 0:00:29]} 6. a3 {[%emt 0:00:06]} Be7 {[%emt 0:02:47]} 7. Nf3 {[%emt 0:00:17][%cal Bg1f3,Bf3e5,Be5c6,Bc6b4][%mdl 32]} b6 {[%emt 0:01:46]} 8. cxd5 {[%emt 0:00:07]} exd5 {[%emt 0:00:10]} 9. g3 {[%emt 0:00:06] The position is equal.} c5 {[%emt 0:02:28]} 10. Bg2 {[%emt 0:00:09]} Ba6 {[%emt 0:01:01]} 11. Ne5 {[%emt 0:01:20]} cxd4 {[%emt 0:04:23]} (11... Qd6 $11 {deserves consideration.}) 12. exd4 $14 {[%emt 0:00:11]} Ne4 {[%emt 0:12:49]} 13. Nxe4 {[%emt 0:23:16]} dxe4 {[%emt 0:00:15]} 14. Qc2 {[%emt 0:00:22]} (14. Bxe4 Qxd4 15. Qc2 (15. Bxa8 $2 Qxe5+ 16. Be3 Qxb2 $19) 15... Qxe5 $17) 14... Nd7 {[%emt 0:32:18] [#] Threatens to win with ...Nxe5.} (14... Qxd4 $2 15. Bc3 Qd6 16. Bxe4 $18 (16. Qxe4 Bf6 $18)) 15. Nc6 {[%emt 0:17:19]} (15. Qxe4 $6 Nxe5 16. dxe5 Qd7 $11) 15... Qe8 {[%emt 0:10:29]} 16. Qxe4 {[%emt 0:11:32]} (16. Bxe4 $6 Rc8 (16... Nf6 17. Bg5 $16) 17. O-O-O (17. Bxh7+ $2 Kh8 $19) 17... Nf6 $11) 16... Bd6 {[%emt 0:00:07] Hoping for ...Qxe4+.} 17. Be3 {[%emt 0:09:32] White is much more active.} Nf6 {[%emt 0:06:22]} 18. Qxe8 {[%emt 0:00:48]} Rfxe8 {[%emt 0:00:06]} (18... Raxe8 $16 19. Bf3 (19. Nxa7 Ng4 $16) 19... Rc8) 19. Nb4 $18 {[%emt 0:02:31][%cal Og2a8]} Bb5 {[%emt 0:00:23]} 20. Bxa8 {[%emt 0:01:40]} Rxa8 {[%emt 0:00:01] [#]} (20... Bxb4+ $142 21. axb4 Rxa8) 21. Na2 $1 {[%emt 0:04:46]} Nd5 {[%emt 0:03:40]} 22. Nc3 {[%emt 0:00:14]} Nxc3 {[%emt 0:00:25]} 23. bxc3 {[%emt 0:00:03]} Bc4 {[%emt 0:00:06]} 24. a4 {[%emt 0:00:49]} f5 {[%emt 0:00:17]} 25. Kd2 {[%emt 0:00:23]} Kf7 {[%emt 0:00:12]} 26. Rhe1 {[%emt 0:17:02]} Rc8 {[%emt 0:00:43]} 27. Reb1 {[%emt 0:00:00]} Rd8 {[%emt 0:01:06]} 28. Kc2 {[%emt 0:00:00]} Be7 {[%emt 0:00:25]} 29. h4 {[%emt 0:00:00]} h6 {[%emt 0:00:01][%cal Bh7h6,Bh6g5][%mdl 32]} 30. Bf4 {[%emt 0:00:00]} g5 {[%emt 0:01:15]} 31. hxg5 {[%emt 0:00:00]} hxg5 {[%emt 0:00:03]} 32. Be5 {[%emt 0:00:00]} Bd5 {[%emt 0:00:13]} 33. Kd2 {[%emt 0:00:00]} Rc8 {[%emt 0:01:29]} 34. a5 {[%emt 0:00:00]} Bd8 {[%emt 0:00:03]} 35. axb6 {[%emt 0:00:00]} Bxb6 {[%emt 0:00:01]} 36. Bd6 {[%emt 0:00:00]} Rd8 {[%emt 0:00:20]} 37. Bb4 {[%emt 0:00:00]} Be4 {[%emt 0:00:40]} 38. Rb2 {[%emt 0:00:00]} Rd5 {[%emt 0:00:17]} 39. Ke2 {[%emt 0:02:54] f3 would now be deadly.} g4 {[%emt 0:00:07]} 40. Rba2 {[%emt 0:00:44]} Bf3+ {[%emt 0:01:58]} 41. Kd3 {[%emt 0:00:03]} Be4+ {[%emt 0:00:33]} 42. Ke3 {[%emt 0:00:09]} Kg6 {[%emt 0:01:06]} 43. Ba5 {[%emt 0:00:33]} Rb5 {[%emt 0:00:05]} 44. Bxb6 {[%emt 0:02:12]} axb6 {[%emt 0:00:02][%mdl 4096] Endgame. KRR-KRB} 45. Kf4 {[%emt 0:01:36]} Rb3 {[%emt 0:00:27]} 46. Rc1 {[%emt 0:00:02]} Bd5 {[%emt 0:00:27]} (46... Kf6 $142 47. Ke3 Bc6) 47. Re2 {[%emt 0:00:14] White is clearly winning.} (47. c4 {gets mated.} Kf6) 47... Bc4 {[%emt 0:00:46]} 48. Rd2 {[%emt 0:00:03]} Kf6 {[%emt 0:00:48]} 49. d5 {[%emt 0:00:15]} Rb5 {[%emt 0:00:01]} 50. Re1 {[%emt 0:00:56] Black did not feel at home in the position after the opening.   Weighted Error Value: White=0.05 (flawless) /Black=0.22 (precise) .  Mistake:       	---       	Black=3      Inaccurate:     	---       	Black=2      OK:         	White=25    	Black=8      Best:        	White=2     	Black=2} 1-0

[Event "7th Sharjah Masters 2024"]
[Site "Sharjah"]
[Date "2024.05.22"]
[Round "9.41"]
[White "Kacharava, Nikolozi"]
[Black "Krzyzanowski, Marcin"]
[Result "1-0"]
[ECO "C54"]
[WhiteElo "2527"]
[BlackElo "2526"]
[Annotator "TA"]
[PlyCount "81"]
[EventDate "2024.05.13"]
[EventType "swiss"]
[EventCountry "UAE"]
[SourceTitle "playchess.com"]
[Source "ChessBase"]
[SourceQuality "1"]
[TimeControl "5400+30"]

{[%evp 13,81,38,42,24,16,17,20,0,75,89,104,98,127,68,68,68,83,15,14,24,18,18,14,19,21,16,22,17,37,36,74,58,70,22,25,25,20,11,51,64,58,70,240,253,259,256,291,303,360,356,593,588,593,593,572,586,586,586,584,566,669,590,8382,8382,8382,8382,8382,8382,6800,6800]} 1. e4 {[%emt 0:00:39]} e5 {[%emt 0:00:06]} 2. Nf3 {[%emt 0:00:42]} Nc6 {[%emt 0:00:05]} 3. Bc4 {[%emt 0:00:54]} Nf6 {[%emt 0:00:15][%cal Bg8f6,Bf6d5,Bd5b6][%mdl 32]} 4. d3 {[%emt 0:00:46]} Bc5 {[%emt 0:00:08]} 5. c3 {[%emt 0:00:59]} O-O {[%emt 0:00:32]} 6. O-O {[%emt 0:01:36]} d5 {[%emt 0:00:38]} 7. exd5 {[%emt 0:01:27]} Nxd5 {[%emt 0:00:06]} 8. a4 {[%emt 0:01:13]} Bf5 {[%emt 0:00:33]} 9. a5 {[%emt 0:06:56] Against Nb6} a6 {[%emt 0:00:07]} 10. Re1 {[%emt 0:04:17] The position is equal.} b5 {[%emt 0:13:26]} (10... Nf6 $11) 11. axb6 $16 {[%emt 0:15:26]} (11. Nxe5 $2 bxc4 12. Nxc6 Qf6 $19) 11... Nxb6 {[%emt 0:00:27]} 12. Rxa6 {[%emt 0:02:38]} ({Worse is} 12. Bxa6 Bc8 (12... Bxd3 13. Bxd3 Rxa1 14. Qc2 $15) 13. d4 (13. Nxe5 $2 Nxe5 14. d4 Bxa6 $19) 13... exd4 $17) 12... Qd6 {[%emt 0:31:48] [#] ...Nxc4 would now be deadly.} 13. Rxa8 {[%emt 0:03:28]} (13. Nh4 $1 $16 {[%cal Rh4f5]} Be6 14. b4 Nxb4 15. cxb4 Bxb4 16. Bd2 Rxa6 17. Bxa6) 13... Rxa8 $14 {[%emt 0:00:06]} 14. Nbd2 {[%emt 0:06:13] Strongly threatening b4.} Nxc4 {[%emt 0:07:35]} 15. Nxc4 {[%emt 0:10:17]} (15. dxc4 $16 Ba7 16. b4) 15... Qxd3 $11 {[%emt 0:00:05]} 16. Qxd3 {[%emt 0:00:53]} Bxd3 {[%emt 0:00:02] A strong pair of Bishops.} 17. Nfxe5 {[%emt 0:00:55]} (17. Ncxe5 Nxe5 18. Nxe5 Bf5 $14) 17... Nxe5 {[%emt 0:00:06]} 18. Nxe5 {[%emt 0:00:04]} Bb5 {[%emt 0:00:37]} 19. Nf3 {[%emt 0:06:09]} f6 {[%emt 0:01:31]} 20. Be3 {[%emt 0:06:14]} Bxe3 {[%emt 0:03:19]} 21. Rxe3 {[%emt 0:03:26][%mdl 4096] Endgame. KRB-KRN} Ra1+ {[%emt 0:02:02]} 22. Re1 {[%emt 0:01:26]} Ra2 {[%emt 0:00:06]} 23. b3 {[%emt 0:04:45]} (23. b4 $14) 23... c5 {[%emt 0:00:30]} 24. c4 {[%emt 0:01:49]} Bc6 {[%emt 0:03:47]} 25. h3 {[%emt 0:01:27]} Kf7 {[%emt 0:04:12]} 26. Re3 {[%emt 0:01:09]} g5 {[%emt 0:01:03]} 27. Ne1 {[%emt 0:01:32]} Rb2 $2 {[%emt 0:02:09] [#] Black cannot hold the game after this.} (27... h5 $14) 28. Nd3 $1 $18 {[%emt 0:00:41][%csl LRb2,LRc5]} Rb1+ {[%emt 0:02:54]} 29. Kh2 {[%emt 0:00:21]} Bd7 {[%emt 0:04:52]} 30. Nxc5 {[%emt 0:00:40]} Bf5 {[%emt 0:00:04]} 31. Nb7 {[%emt 0:03:03]} Bc2 $2 {[%emt 0:05:26]} (31... Kf8 32. Nd6 (32. Rf3 Bc2 $18) 32... Bd7) 32. Nd6+ {[%emt 0:02:21] White is clearly winning.} Kg6 {[%emt 0:00:41]} 33. c5 {[%emt 0:01:01]} Bxb3 {[%emt 0:02:13]} 34. c6 {[%emt 0:00:33]} Rc1 {[%emt 0:00:10]} 35. Rxb3 {[%emt 0:00:18]} Rxc6 {[%emt 0:00:02] KRN-KR} 36. Rd3 {[%emt 0:00:28]} h5 {[%emt 0:00:05]} 37. g4 {[%emt 0:00:50]} hxg4 {[%emt 0:00:04]} 38. hxg4 {[%emt 0:00:03]} Rc2 {[%emt 0:00:11]} 39. Kg3 {[%emt 0:00:16]} Rc1 {[%emt 0:00:13]} 40. Ne4 {[%emt 0:00:38]} Rg1+ {[%emt 0:00:32]} 41. Kf3 {[%emt 0:00:06] Weighted Error Value: White=0.10 (very precise) /Black=0.40.  Loses game:     	---       	Black=1      Mistake:       	White=3     	Black=2      Inaccurate:     	---       	Black=3      OK:         	White=11    	Black=8      Best:        	White=6     	Black=3      Strong:       	White=1     	---} 1-0